[Event "1st Serbian League 2022"]
[Site "Vrnjacka Banja"]
[Date "2022.09.27"]
[Round "8.1"]
[White "Sanal, Vahap"]
[Black "Budisavljevic, Luka"]
[Result "1/2-1/2"]
[ECO "B23"]
[WhiteElo "2595"]
[BlackElo "2524"]
[Annotator "TA"]
[PlyCount "218"]
[EventDate "2022.09.20"]
[EventType "team-tourn"]
[EventCountry "SRB"]
[SourceTitle "playchess.com"]
[Source "ChessBase"]
[SourceQuality "1"]
[TimeControl "40/5400+30:1800+30"]

{[%evp 54,218,0,-16,0,-4,0,0,0,0,0,0,0,8,3,8,3,0,0,-14,-8,-47,-38,-104,-108,-160,-10,-19,-14,-84,-39,-46,-28,-25,-30,-57,-47,-43,-58,-41,-48,-89,0,0,0,0,0,0,30,0,109,117,118,24,19,27,27,23,23,27,23,41,47,0,0,0,166,175,172,167,262,9,16,0,0,0,0,0,0,0,0,0,0,0,0,0,0,0,0,0,0,0,0,0,0,0,0,0,0,0,0,0,0,0,48,48,42,49,104,0,181,59,71,0,217,67,72,0,0,0,0,0,0,0,0,0,0,0,0,0,0,0,0,0,0,0,0,0,0,0,0,0,0,0,0,0,0,0,0,0,0,0,0,0,0,0,0,0,0,0,0,0,0,0,0,0,0]} 1. e4 {[%emt 0:00:44]} c5 {[%emt 0:00:09]} 2. Nc3 {[%emt 0:00:10]} e6 {[%emt 0:00:12]} 3. Nge2 {[%emt 0:00:09]} Nc6 {[%emt 0:00:20]} 4. g3 {[%emt 0:00:10]} a6 {[%emt 0:05:17]} 5. Bg2 {[%emt 0:00:08]} b5 {[%emt 0:00:19]} 6. d4 {[%emt 0:01:23]} cxd4 {[%emt 0:00:21]} 7. Nxd4 {[%emt 0:00:04]} Nxd4 {[%emt 0:00:28]} 8. Qxd4 {[%emt 0:00:08]} Bb7 {[%emt 0:00:05]} 9. O-O {[%emt 0:00:19]} Ne7 {[%emt 0:00:11]} 10. a4 {[%emt 0:08:25]} Nc6 {[%emt 0:00:47]} 11. Qd1 {[%emt 0:00:24]} b4 {[%emt 0:00:12]} 12. Nd5 {[%emt 0:01:00]} Bc5 {[%emt 0:00:43]} 13. Be3 {[%emt 0:04:48]} d6 {[%emt 0:00:05]} 14. Qg4 {[%emt 0:05:13]} Bxe3 {[%emt 0:05:29]} 15. Nxe3 {[%emt 0:00:06]} O-O {[%emt 0:00:23]} 16. Rad1 {[%emt 0:00:54]} Qc7 {[%emt 0:02:33]} 17. Kh1 {[%emt 0:03:38]} Ne5 {[%emt 0:21:39]} 18. Qe2 {[%emt 0:01:54]} Rad8 {[%emt 0:02:27]} 19. f4 {[%emt 0:00:45]} Nd7 {[%emt 0:00:47]} 20. Qd2 {[%emt 0:15:26]} Qc5 {[%emt 0:14:38]} 21. Ng4 {[%emt 0:00:20]} Nb6 {[%emt 0:02:12]} 22. b3 {[%emt 0:03:35]} f5 {[%emt 0:05:32]} 23. Nf2 {[%emt 0:01:49]} a5 {[%emt 0:02:27]} 24. Rfe1 {[%emt 0:01:29]} Qc6 {[%emt 0:01:32]} 25. Nh3 {[%emt 0:03:06]} fxe4 {[%emt 0:02:25]} 26. Bxe4 {[%emt 0:00:19]} Qc8 {[%emt 0:05:25]} 27. Qg2 {[%emt 0:01:20]} d5 {[%emt 0:05:34]} 28. Bf3 {[%emt 0:00:44]} Rd6 {[%emt 0:00:44]} 29. Rd2 {[%emt 0:01:46]} h6 {[%emt 0:01:21]} 30. Nf2 {[%emt 0:01:08]} Nd7 {[%emt 0:01:59]} 31. Ng4 {[%emt 0:01:49]} Qc7 {[%emt 0:03:23]} 32. h4 {[%emt 0:04:58]} Bc6 {[%emt 0:04:26]} 33. Rde2 {[%emt 0:03:10]} Nc5 {[%emt 0:00:55]} 34. Ne5 {[%emt 0:00:35]} Bb7 {[%emt 0:00:47]} 35. Ng6 {[%emt 0:02:10]} Rf6 {[%emt 0:01:37]} 36. h5 {[%emt 0:00:22]} Ne4 {[%emt 0:01:30]} 37. Kh2 {[%emt 0:00:17]} Rc6 $1 {[%emt 0:01:51]} 38. Ne5 {[%emt 0:01:42]} (38. Bxe4 dxe4 39. Rd1 (39. Qxe4 Rc5 $17) 39... Rc5 $17) (38. Rc1 $15) 38... Rc3 $17 {[%emt 0:00:21]} 39. Rd1 {[%emt 0:03:15]} (39. Bxe4 dxe4 40. Kg1 Rf5 $19) (39. Ng6 $142) 39... Nd6 {[%emt 0:03:49]} (39... Rf5 $17 {...Ba6 is the strong threat.} 40. Nd3 Ba6) 40. Rdd2 $11 {[%emt 0:03:26]} Rf8 {[%emt 0:01:35]} 41. Qh3 {[%emt 0:33:07]} (41. Rd3 $11) 41... Bc8 {[%emt 0:06:32]} 42. Qg2 {[%emt 0:00:00]} Ba6 {[%emt 0:03:17]} 43. Re1 {[%emt 0:00:00]} Bb7 {[%emt 0:01:06]} 44. Ng6 {[%emt 0:00:00]} Re8 {[%emt 0:03:03]} 45. Re5 {[%emt 0:00:00]} Ne4 {[%emt 0:05:03]} 46. Bxe4 {[%emt 0:00:00]} dxe4 {[%emt 0:00:01]} 47. Qf2 {[%emt 0:00:23]} e3 {[%emt 0:02:41]} (47... Kh7 $17 {Threatens to win with ...Qc6.} 48. Kh3 Qc6) 48. Rxe3 $11 {[%emt 0:00:06]} Qc6 {[%emt 0:00:04]} 49. Re1 {[%emt 0:03:51]} Kh7 {[%emt 0:02:25]} 50. Ne5 {[%emt 0:01:38]} Qc8 {[%emt 0:03:29]} 51. Re3 {[%emt 0:01:05]} (51. Qd4 $5 {[%cal Re1e3]}) 51... Ba8 {[%emt 0:03:02]} (51... Rd8 $1 $11 {remains equal.} 52. Rxd8 Qxd8) 52. Rxc3 $16 {[%emt 0:02:25]} bxc3 {[%emt 0:01:23]} 53. Rd3 {[%emt 0:03:16]} (53. Re2 $1 $16) 53... Rd8 $1 $11 {[%emt 0:02:36]} 54. Qe3 {[%emt 0:06:03]} Qb7 {[%emt 0:00:19]} 55. Nf3 {[%emt 0:00:45]} Rxd3 {[%emt 0:02:14]} 56. Qxd3+ {[%emt 0:00:02]} Kg8 $1 {[%emt 0:00:32]} 57. Kg2 {[%emt 0:00:33]} (57. Qd8+ Kh7 58. Qd3+ Kg8 59. Qd8+ Kh7 60. Qd3+ $16) 57... Qe4 {[%emt 0:00:24]} 58. Qd1 {[%emt 0:00:11]} (58. Qxe4 $1 $14 {is more appropriate.} Bxe4 59. Kf2) 58... Qd5 $11 {[%emt 0:00:55]} 59. Qe2 $1 {[%emt 0:01:26]} Qxh5 $2 {[%emt 0:00:14]} (59... Kf8 $11) 60. Qxe6+ $18 {[%emt 0:00:07]} Kh7 {[%emt 0:00:07]} 61. Qe3 {[%emt 0:01:41]} Qd5 {[%emt 0:01:11]} (61... Kh8 $142 62. Kf2 (62. Qxc3 Be4 $16) 62... Bb7) 62. Qxc3 $2 {[%emt 0:00:59]} (62. Kf2 $1 $18) 62... Qd1 $11 {[%emt 0:00:03]} 63. g4 {[%emt 0:07:23]} Bxf3+ {[%emt 0:00:11]} 64. Qxf3 {[%emt 0:00:05]} Qxc2+ {[%emt 0:00:02]} 65. Kg3 {[%emt 0:00:05]} Qb1 {[%emt 0:00:52]} 66. Qe3 {[%emt 0:00:05]} Qc2 {[%emt 0:00:24]} 67. f5 {[%emt 0:02:52]} h5 {[%emt 0:02:09]} 68. Qe6 {[%emt 0:01:32]} hxg4 {[%emt 0:00:24]} 69. Kxg4 {[%emt 0:00:14]} Qd1+ {[%emt 0:00:33]} 70. Kf4 {[%emt 0:00:07]} Qd4+ {[%emt 0:00:16]} 71. Qe4 {[%emt 0:00:34]} Qf2+ {[%emt 0:01:01]} 72. Qf3 {[%emt 0:00:14]} Qd4+ $1 {[%emt 0:00:12]} 73. Kg3 {[%emt 0:00:15]} (73. Qe4 $5 {[%cal Re4d4]} Qd6+ 74. Ke3 $16) 73... Qg1+ {[%emt 0:00:09]} 74. Kh4 {[%emt 0:00:54]} Qh2+ {[%emt 0:00:19]} 75. Kg4 {[%emt 0:00:42]} Qg1+ {[%emt 0:00:16]} 76. Kh3 {[%emt 0:00:12]} Qc5 {[%emt 0:00:28]} 77. Qd3 {[%emt 0:01:23]} Qg1 {[%emt 0:01:41]} 78. Kh4 {[%emt 0:00:52]} Qe1+ {[%emt 0:01:25]} (78... Qg2 $11) 79. Kg4 $14 {[%emt 0:00:07]} Qb4+ {[%emt 0:00:16]} 80. Kf3 {[%emt 0:01:12]} Qe1 {[%emt 0:01:39]} (80... Qb7+ $14 81. Kf4 Qb8+ 82. Ke4 Qc7) 81. f6+ {[%emt 0:00:37]} (81. Kf4 $1 $16) 81... Kh8 $2 {[%emt 0:00:26]} (81... g6 $1 $11 {and Black stays safe.}) 82. Qd8+ {[%emt 0:00:32]} ({Only move:} 82. f7 $1 $18 {[%cal Rf7f8]} Qh1+ 83. Ke2 Qh2+ 84. Kd1 Qh5+ 85. Kc2 Qc5+ 86. Qc3 Qf5+ 87. Kb2) 82... Kh7 $14 {[%emt 0:00:01]} 83. Qd3+ {[%emt 0:00:01]} (83. Qe7 $1 $16 {[%csl Gf6][%cal Re7g7]} Qc3+ 84. Ke4 Qe1+ 85. Kd5 Qd1+ 86. Kc6 Qc2+ 87. Kd6 Qd3+ 88. Kc7 Qg3+ 89. Kb6 Qxb3+ 90. Ka7 (90. Kxa5 Qd5+ 91. Kb4 Qd2+ 92. Kc4 Qc2+ 93. Kb5 Qd3+ 94. Kc5 Qa3+ 95. Kb6 Qb3+ 96. Kc7 Qc4+ 97. Kb7 Qb3+ 98. Kc8 Qg8+ 99. Kd7 Qd5+ 100. Kc7 Qc4+ 101. Kb7 Qb3+ 102. Kc7 Qc4+ $14)) 83... Kh8 $18 {[%emt 0:00:28] [#]} 84. fxg7+ {[%emt 0:00:29]} (84. Qd8+ Kh7 85. Qe7 Qc3+ 86. Kf4 Qd2+ 87. Ke4 Qc2+ 88. Kd4 Qb2+ 89. Kc5 Qc3+ 90. Kb6 Qxb3+ 91. Ka7 (91. Kxa5 Qd5+ 92. Kb6 Qb3+ 93. Kc7 Qc4+ 94. Kb6 Qb3+ 95. Ka5 Qc3+ 96. Kb6 Qb3+ $14) 91... Kg6) ({White has to play} 84. f7 $1 $18 {[%cal Rf7f8]} Qh1+ 85. Ke2 Qh2+ 86. Kd1 (86. Ke1 Qg1+ 87. Ke2 Qh2+ 88. Kd1 Qh5+ 89. Kc2 Qxf7 $18) 86... Qh5+ 87. Kc2 Qc5+ 88. Qc3 Qf2+ 89. Qd2 Qf5+ 90. Kb2 Qxf7 91. Qxa5) 84... Kxg7 $14 {[%emt 0:00:01] [#]} 85. Qd4+ {[%emt 0:00:12]} (85. Kf4 $1 $16 {[%cal Rf4f5]}) 85... Kf7 $11 {[%emt 0:00:07]} 86. Qd5+ {[%emt 0:01:06]} ({Don't take} 86. Qf4+ Ke7 $16) 86... Ke7 {[%emt 0:00:17]} 87. Kf4 {[%emt 0:00:17]} Qb4+ {[%emt 0:02:06]} 88. Kf5 {[%emt 0:00:05]} Qb6 {[%emt 0:00:58]} 89. Ke4 {[%emt 0:00:03]} Qb4+ {[%emt 0:00:19]} 90. Kd3 {[%emt 0:00:09]} Qe1 $1 {[%emt 0:00:47]} 91. Kd4 {[%emt 0:01:46]} Qb4+ $1 {[%emt 0:00:10]} 92. Kd3 {[%emt 0:00:16]} Qe1 $1 {[%emt 0:00:01]} 93. Qb7+ {[%emt 0:00:14]} Kd6 {[%emt 0:00:06]} 94. Qb6+ {[%emt 0:00:02]} Kd5 {[%emt 0:00:26]} 95. Qb7+ {[%emt 0:00:25]} ({But not} 95. Qd4+ Kc6 $14) 95... Kc5 {[%emt 0:00:26]} 96. Qb5+ {[%emt 0:00:22]} Kd6 {[%emt 0:00:01]} 97. Qa6+ {[%emt 0:00:17]} Kc5 {[%emt 0:00:17]} 98. Qc4+ {[%emt 0:00:11]} Kd6 {[%emt 0:00:30]} 99. Qf4+ {[%emt 0:00:33]} Kc6 {[%emt 0:00:26]} 100. Qf3+ {[%emt 0:00:26]} Kc5 {[%emt 0:00:07]} 101. Kc2 {[%emt 0:00:05]} Kd6 {[%emt 0:00:57]} 102. Qg2 {[%emt 0:00:54]} Kc5 {[%emt 0:00:08]} 103. Qg5+ {[%emt 0:00:16]} Kd6 {[%emt 0:00:11]} 104. Qf4+ {[%emt 0:00:31]} Kc6 {[%emt 0:00:11]} 105. Qf3+ {[%emt 0:01:16]} Kc5 {[%emt 0:00:06]} 106. Kb2 {[%emt 0:00:38]} Qd2+ {[%emt 0:00:04]} 107. Ka3 {[%emt 0:00:15]} Qc1+ {[%emt 0:00:04]} 108. Ka2 {[%emt 0:00:01]} Qc2+ {[%emt 0:00:05]} 109. Ka3 {[%emt 0:00:04]} Qc1+ {[%emt 0:00:03]} 1/2-1/2

[Event "1st Serbian League 2022"]
[Site "Vrnjacka Banja"]
[Date "2022.09.27"]
[Round "8.2"]
[White "Puranik, Abhimanyu"]
[Black "Gurel, Ediz"]
[Result "1/2-1/2"]
[ECO "B15"]
[WhiteElo "2603"]
[BlackElo "2437"]
[Annotator "TA"]
[PlyCount "105"]
[EventDate "2022.09.20"]
[EventType "team-tourn"]
[EventCountry "SRB"]
[SourceTitle "playchess.com"]
[Source "ChessBase"]
[SourceQuality "1"]
[TimeControl "40/5400+30:1800+30"]

{[%evp 10,105,36,12,15,12,39,5,27,15,25,23,27,10,14,9,12,5,0,0,0,-24,-34,-33,0,0,0,-56,16,0,-3,-54,-42,-72,-64,-153,-146,-152,-143,-180,-106,-167,-162,-156,-130,-224,-243,-765,-759,-827,-845,-1286,-1076,-893,-557,-537,-532,-442,-294,-280,-160,-160,-160,-160,-160,-160,-160,-160,-111,-160,-111,-160,-160,-160,-160,-160,-111,-160,-160,-160,-111,-160,-160,-160,-160,-160,-160,-160,-160,-160,-160,-160,-160,-160,-153,-160,-156,-135]} 1. e4 {[%emt 0:00:13]} c6 {[%emt 0:00:06]} 2. d4 {[%emt 0:01:46]} d5 {[%emt 0:00:04]} 3. Nc3 {[%emt 0:00:02]} dxe4 {[%emt 0:00:06]} 4. Nxe4 {[%emt 0:00:03]} Nf6 {[%emt 0:00:06]} 5. Nxf6+ {[%emt 0:00:20]} exf6 {[%emt 0:00:04]} 6. Be3 {[%emt 0:00:43]} Bd6 {[%emt 0:00:21] B15: Caro-Kann: 3 Nc3: 3...g6 and 3...dxe4 4 Nxe4 Nf6 5 Nxf6+ exf6.} 7. Bd3 {[%emt 0:00:18]} O-O {[%emt 0:02:31]} 8. Ne2 {[%emt 0:00:17]} (8. Qh5 g6 9. Qd1 Qb6 $11) 8... Re8 {[%emt 0:04:16] The position is equal.} 9. O-O {[%emt 0:01:14]} Na6 {[%emt 0:05:56] [#]} 10. Bxa6 $146 {[%emt 0:14:36]} ({Predecessor:} 10. c4 Nc7 11. Qc2 g6 12. Nc3 f5 13. Rae1 Bd7 14. Qc1 Qf6 15. c5 Bf8 16. Bf4 {0-1 (36) Sandalakis,N (2240)-Langrock,H (2351) Heraklion 2022}) 10... bxa6 {[%emt 0:00:02]} 11. Qd3 {[%emt 0:02:59]} Qa5 {[%emt 0:14:39]} 12. Ng3 {[%emt 0:07:29]} Be6 {[%emt 0:19:01]} 13. b3 {[%emt 0:04:07]} Rad8 {[%emt 0:02:05]} 14. Bd2 {[%emt 0:14:07]} Qb6 {[%emt 0:02:54][%cal Od6e5]} 15. c3 {[%emt 0:03:33]} c5 {[%emt 0:08:27]} 16. Be3 {[%emt 0:00:11]} cxd4 {[%emt 0:04:18]} 17. Bxd4 {[%emt 0:02:22]} Be5 {[%emt 0:00:29][%cal Re5d4]} 18. Rad1 {[%emt 0:01:14]} (18. Rfd1 $11) 18... Qa5 {[%emt 0:02:39]} (18... Bxd4 $1 $15 19. cxd4 Bd7) 19. Rd2 {[%emt 0:44:26]} h5 {[%emt 0:06:18]} 20. h4 {[%emt 0:00:00]} (20. h3 $11) 20... Bg4 $15 {[%emt 0:04:37]} 21. a4 {[%emt 0:00:00]} Rd7 {[%emt 0:04:43]} 22. Qc2 {[%emt 0:00:00]} (22. Re1 $15) 22... Bf4 $17 {[%emt 0:02:19]} 23. Rd3 {[%emt 0:00:00][%cal Of2f3]} Qc7 $1 {[%emt 0:00:07]} 24. b4 {[%emt 0:00:00]} Rde7 {[%emt 0:05:21]} (24... Qc4 $1 $19 25. f3 Bxg3 26. fxg4 Bxh4) 25. Qb1 {[%emt 0:00:00]} (25. c4 $17) 25... Re6 {[%emt 0:01:33]} 26. a5 {[%emt 0:00:00]} Qc6 {[%emt 0:02:05]} 27. Bxa7 {[%emt 0:00:00]} (27. Bc5 $17) 27... g5 $1 $19 {[%emt 0:01:20]} 28. Rd4 $2 {[%emt 0:00:00]} (28. b5 Qb7 29. Be3 Bxg3 30. fxg3 Rxe3 31. Rxe3 Rxe3 32. bxa6 Qxa6 33. hxg5) 28... Bxg3 {[%emt 0:00:27]} 29. Rxg4 {[%emt 0:00:00]} hxg4 {[%emt 0:00:01]} 30. fxg3 {[%emt 0:00:00]} Re2 {[%emt 0:00:05][%csl Ge2][%cal Rc6g2]} 31. Bf2 {[%emt 0:00:00]} gxh4 {[%emt 0:00:03]} 32. Qf5 {[%emt 0:00:00]} R8e4 {[%emt 0:01:57] ( -> ...hxg3)} 33. gxh4 {[%emt 0:03:06]} g3 {[%emt 0:01:52]} 34. Bxg3 {[%emt 0:00:07] [#]} Rxg2+ $3 {[%emt 0:00:17][%mdl 512]} 35. Kxg2 $17 {[%emt 0:00:06]} Rf4+ {[%emt 0:00:04][%mdl 64] Discovered Attack} 36. Kh2 {[%emt 0:00:37]} Rxf5 {[%emt 0:00:03]} 37. Rxf5 {[%emt 0:00:04]} Qxc3 {[%emt 0:00:04][%mdl 4096] Endgame KQ-KRB} 38. Rf4 {[%emt 0:00:55]} Kg7 {[%emt 0:00:43]} ({Black should try} 38... Qd2+ 39. Kh3 f5 40. Rxf5 Qxb4 41. Rg5+ Kf8) 39. Kg2 {[%emt 0:00:30]} (39. Bf2 $142) 39... Kg6 {[%emt 0:00:06]} (39... Qd2+ $142 40. Kf3 Qd1+ 41. Kg2 Qd2+ 42. Kh3 Qe3) 40. Rg4+ {[%emt 0:00:39]} ({White should play} 40. Bf2) 40... Kh5 {[%emt 0:00:36]} 41. Rf4 {[%emt 0:30:03]} Qc6+ {[%emt 0:31:44]} 42. Kh2 {[%emt 0:00:19] [#]} Qd5 {[%emt 0:00:09]} (42... Qc1 $142 $1 43. Kg2 Qd2+ 44. Kh3 Qc3) 43. Kg1 {[%emt 0:00:30]} (43. Bf2 $142) 43... Qd2 {[%emt 0:00:38]} 44. Kh1 {[%emt 0:00:34]} Qe2 {[%emt 0:01:11]} (44... f5 $142 45. Kg1 Qe3+ 46. Kh2 Kg6) 45. Kg1 {[%emt 0:00:08]} (45. Bf2 $142) 45... f5 {[%emt 0:00:20] Black is clearly better.} 46. Kh1 {[%emt 0:00:13]} ({Don't go for} 46. Rxf5+ $2 Kg4 47. Rf2 Qe3 $19) 46... Kg6 {[%emt 0:00:25]} 47. Kg1 {[%emt 0:00:39]} Kf6 {[%emt 0:00:06]} 48. Kh1 {[%emt 0:02:01]} Ke6 {[%emt 0:00:04]} 49. Kg1 {[%emt 0:00:03]} Qc2 {[%emt 0:01:31]} 50. Kh1 {[%emt 0:00:30]} Kd5 {[%emt 0:00:13]} 51. Kg1 {[%emt 0:00:09]} Kc6 {[%emt 0:00:40]} 52. Kh1 {[%emt 0:00:08]} Kb5 {[%emt 0:00:25]} ({Inferior is} 52... Qc3 53. Kg2 $17) 53. Kg1 {[%emt 0:00:23] Weighted Error Value: White=0.43/Black=0.29 (precise)} 1/2-1/2

[Event "1st Serbian League 2022"]
[Site "Vrnjacka Banja"]
[Date "2022.09.27"]
[Round "8.3"]
[White "Markus, Robert"]
[Black "Gagunashvili, Merab"]
[Result "1/2-1/2"]
[ECO "D12"]
[WhiteElo "2615"]
[BlackElo "2552"]
[Annotator "TA"]
[PlyCount "83"]
[EventDate "2022.09.20"]
[EventType "team-tourn"]
[EventCountry "SRB"]
[SourceTitle "playchess.com"]
[Source "ChessBase"]
[SourceQuality "1"]
[TimeControl "40/5400+30:1800+30"]

{[%evp 11,83,24,25,17,39,9,25,20,28,41,32,33,51,39,37,31,40,0,16,16,18,12,14,16,31,32,31,27,31,32,31,33,39,25,31,31,36,37,39,28,34,19,23,17,33,31,29,30,30,18,20,20,39,23,24,22,31,13,15,12,20,16,16,16,17,20,21,0,0,0,21,0,0,0]} 1. d4 {[%emt 0:00:06]} d5 {[%emt 0:00:04]} 2. c4 {[%emt 0:00:10]} c6 {[%emt 0:00:09]} 3. Nf3 {[%emt 0:00:06]} Nf6 {[%emt 0:00:16]} 4. e3 {[%emt 0:00:09]} Bf5 {[%emt 0:00:43]} 5. Nc3 {[%emt 0:00:09]} e6 {[%emt 0:00:05]} 6. Nh4 {[%emt 0:00:08]} Bg6 {[%emt 0:00:22]} 7. Be2 {[%emt 0:00:39] D12: Slav Defence: 3 Nf3 Nf6 4 e3 Bf5.} Nbd7 {[%emt 0:00:26]} 8. g3 {[%emt 0:00:10]} Be7 {[%emt 0:01:55]} 9. O-O {[%emt 0:01:50] White has an edge.} O-O {[%emt 0:03:06]} 10. Nxg6 {[%emt 0:00:56]} hxg6 {[%emt 0:00:05]} 11. b3 {[%emt 0:04:40]} Qa5 {[%emt 0:11:03]} 12. Bd2 {[%emt 0:10:29][%cal Oc3d5]} Qc7 {[%emt 0:01:23] [#]} 13. Bf3 $146 {[%emt 0:07:39]} ({Predecessor:} 13. Qc2 Rac8 14. Rfd1 c5 15. dxc5 Nxc5 16. Be1 dxc4 17. Bxc4 a6 18. Qb2 Qe5 19. Rab1 {½-½ (33) Santos Ruiz,M (2523)-Karpov,A (2623) Salamanca 2018}) 13... Nb6 {[%emt 0:08:14][%cal Bd7b6,Bb6c8,Bc8d6,Bd6e4][%mdl 32]} 14. cxd5 {[%emt 0:13:15]} cxd5 {[%emt 0:06:11]} 15. a4 {[%emt 0:02:10]} Nc8 {[%emt 0:06:17]} 16. Qe2 {[%emt 0:12:27]} Nd6 {[%emt 0:01:38]} 17. Rfc1 {[%emt 0:01:55][%cal Oc3d5] [#] Threatens to win with Nxd5!} Qd7 {[%emt 0:02:37]} 18. Nd1 {[%emt 0:06:54][%cal Bc3d1,Bd1b2,Bb2d3][%mdl 32]} Rfc8 {[%emt 0:01:03]} 19. Nb2 {[%emt 0:00:07]} Rxc1+ {[%emt 0:02:20]} 20. Rxc1 {[%emt 0:00:06]} Rc8 {[%emt 0:00:34]} 21. Qd1 {[%emt 0:01:11]} Nde4 {[%emt 0:11:02]} 22. Rxc8+ {[%emt 0:02:28]} Qxc8 {[%emt 0:00:04]} 23. Be1 {[%emt 0:00:10]} Qc6 {[%emt 0:03:42]} 24. Nd3 {[%emt 0:01:06]} Nd7 {[%emt 0:01:09]} 25. Bg2 {[%emt 0:02:11]} Nd6 {[%emt 0:01:17]} 26. g4 {[%emt 0:04:07]} Qc7 {[%emt 0:01:14]} 27. Qc1 {[%emt 0:00:54]} Qxc1 {[%emt 0:00:28]} 28. Nxc1 {[%emt 0:00:05]} Nb8 {[%emt 0:00:29]} 29. Kf1 {[%emt 0:01:58]} Nc6 {[%emt 0:00:48]} 30. Ke2 {[%emt 0:00:11]} g5 {[%emt 0:03:07]} 31. Nd3 {[%emt 0:01:01]} Kf8 {[%emt 0:00:44]} 32. Bc3 {[%emt 0:01:44]} Ke8 {[%emt 0:00:50]} 33. Kd1 {[%emt 0:03:28]} b6 {[%emt 0:03:04]} 34. Kc2 {[%emt 0:01:08]} a5 {[%emt 0:02:51] The position is equal.} 35. Ne5 {[%emt 0:02:48]} Nxe5 {[%emt 0:15:43]} 36. dxe5 $11 {[%emt 0:00:12][%mdl 4096] Endgame KBB-KBN} Nb7 {[%emt 0:01:39]} 37. e4 {[%emt 0:06:13]} d4 {[%emt 0:01:47]} 38. Bb2 {[%emt 0:02:36]} Bc5 {[%emt 0:02:54]} 39. Bc1 {[%emt 0:00:52]} Be7 {[%emt 0:00:59]} 40. Bb2 {[%emt 0:03:36]} Bc5 {[%emt 0:01:06]} 41. Bc1 {[%emt 0:36:43]} Be7 {[%emt 0:31:23]} 42. Bb2 {[%emt 0:00:00] Weighted Error Value: White=0.07 (flawless) /Black=0.04 (flawless)} 1/2-1/2